bitfinex-derivatives/quotes_ETHF0:USTF0_20230702
["timestamp","ask_amount","ask_price","bid_price","bid_amount"]
[1688336469752,0.3126539,1935.5,1935.3,0.59671635]
[1688336473157,0.00263443,1935.4,1935.3,0.59671635]
[1688336473456,0.41785313,1935.6,1935.4,5.284]
[1688336473658,0.02,1936.5,1936.2,0.103]
[1688336473960,0.02,1936.5,1936.4,11.1678]
[1688336474155,1.24000849,1937.5,1936.5,10.181]
[1688336474459,7.932,1937.6,1937.2,3.2078]
[1688336474656,7.932,1937.6,1937.2,0.00774234]
[1688336474657,11.4245,1937.3,1937.2,0.00774234]
[1688336475450,3.5175,1937.3,1937.2,0.00774234]
[1688336475655,0.9291,1937.5,1937.2,0.29445869]
[1688336475855,0.30968,1937.4,1937.2,0.00774234]
[1688336476359,7.907,1937.3,1937.2,0.00774234]
[1688336476549,8.2167,1937.3,1937.2,0.00774234]
[1688336477851,0.77425,1937.4,1937.2,0.31745234]
[1688336478056,0.77425,1937.4,1937.2,0.60416869]
[1688336479560,1.34746817,1937.6,1937.2,8.54016869]
[1688336480153,0.41836817,1937.6,1937.3,0.56748412]
[1688336480358,0.41836817,1937.6,1937.4,0.59638635]
[1688336480857,8.62201817,1937.6,1937.3,0.30969]
[1688336481157,11.82981817,1937.6,1937.3,0.30969]
[1688336483260,0.73801817,1937.6,1937.3,0.30969]
[1688336484262,0.73801817,1937.6,1937.4,0.28671635]
[1688336484457,0.73801817,1937.6,1937.4,0.59639635]
[1688336484859,0.73801817,1937.6,1937.4,0.30968]
[1688336485963,0.73801817,1937.6,1937.2,0.93684234]
[1688336486168,7.931,1937.5,1937.2,0.93684234]
[1688336486370,7.894,1937.3,1937.2,0.00774234]
[1688336486669,8.2037,1937.3,1937.2,0.00774234]
[1688336487665,0.77425,1937.4,1937.2,0.60416869]
[1688336487860,0.77425,1937.4,1937.2,0.31745234]
[1688336488263,0.77425,1937.4,1937.2,0.00774234]
[1688336488767,0.77425,1937.4,1937.2,0.31745234]
[1688336490272,3.2078,1937.3,1937.2,0.31745234]
[1688336490463,3.5175,1937.3,1937.2,0.31745234]
[1688336491267,0.3097,1937.3,1937.2,0.31745234]
[1688336494674,5.3707,1937.3,1937.2,0.31745234]
[1688336495167,5.3707,1937.3,1937.2,0.60416869]
[1688336495367,5.061,1937.3,1937.2,0.60416869]
[1688336496073,5.061,1937.3,1937.2,0.31745234]
[1688336496580,9.01105,1937.5,1937.2,0.60416869]
[1688336497173,9.01105,1937.5,1937.2,0.31745234]
[1688336497174,5.06,1937.3,1937.2,0.31745234]
[1688336497482,8.5775,1937.3,1937.2,0.31745234]
[1688336498575,8.5775,1937.3,1937.2,0.00774234]
[1688336499076,8.5775,1937.3,1937.2,0.31745234]
[1688336499274,8.5775,1937.3,1937.2,0.60416869]
[1688336499478,8.5775,1937.3,1937.2,0.31745234]
[1688336502889,8.5785,1937.3,1937.2,0.00774234]
[1688336503187,8.5785,1937.3,1936.8,5.21166]
[1688336503188,8.5785,1937.3,1936.7,1.03266]
[1688336503387,5.061,1936.8,1936.7,1.03266]
[1688336510490,5.037,1936.8,1936.7,1.31937635]
[1688336512192,3.98221,1937.0,1936.7,4.52717635]
[1688336512193,5.027,1937.0,1936.7,4.52717635]
[1688336512402,5.027,1937.0,1936.7,3.10452]
[1688336512589,0.28671635,1936.9,1936.8,0.28671587]
[1688336512891,14.84192,1937.2,1936.8,5.65749587]
[1688336513392,14.84192,1937.2,1936.8,6.22497999]
[1688336514594,3.2078,1937.1,1936.8,6.22497999]
[1688336514791,0.28671635,1937.0,1936.8,6.22497999]
[1688336515688,3.2078,1937.1,1936.8,6.22497999]
[1688336515893,5.029,1937.2,1936.8,6.22497999]
[1688336520993,5.029,1937.2,1936.7,0.92938]
[1688336520994,8.2678,1936.9,1936.7,0.92938]
[1688336521295,0.30972,1937.2,1936.7,0.92938]
[1688336521296,5.037,1937.0,1936.7,1.21609587]
[1688336521494,5.34674,1937.0,1936.7,1.21609587]
[1688336521892,5.10044,1937.1,1936.8,5.03]
[1688336522093,5.10044,1937.1,1936.9,0.59647587]
[1688336522295,10.50949851,1937.3,1936.9,5.61147587]
[1688336523598,10.50949851,1937.3,1936.9,6.17895999]
[1688336529298,8.98208237,1937.3,1936.9,6.17895999]
[1688336530195,8.98208237,1937.3,1936.9,7.17895999]
[1688336533507,8.98208237,1937.3,1936.9,6.32476]
[1688336533806,0.30975,1937.0,1936.9,1.30976]
[1688336534002,0.59646635,1937.0,1936.9,1.30976]
[1688336535707,5.63346635,1937.0,1936.9,1.0]
[1688336539712,5.63346635,1937.0,1936.6,0.93706493]
[1688336540010,5.061,1936.7,1936.6,0.93706493]
[1688336540210,5.34771635,1936.7,1936.6,0.93706493]
[1688336542117,5.061,1936.7,1936.6,1.2237808]
[1688336542318,5.83446,1936.9,1936.6,1.2237808]
[1688336542713,0.28671635,1936.8,1936.6,1.2237808]
[1688336543309,5.36976,1936.9,1936.6,1.2237808]
[1688336544117,0.28671635,1936.8,1936.6,1.2237808]
[1688336544914,5.36976,1936.9,1936.6,1.2237808]
[1688336545218,5.80343,1937.0,1936.6,6.2847808]
[1688336545419,5.80343,1937.0,1936.7,0.56748412]
[1688336545623,5.80343,1937.0,1936.8,0.59649587]
[1688336545912,6.09014635,1937.0,1936.8,0.59649587]
[1688336546114,0.30976,1937.1,1936.8,0.59649587]
[1688336546115,0.0177013,1937.6,1937.5,5.0]
[1688336546307,9.08901728,1938.4,1937.5,5.0]
[1688336546308,5.037,1938.5,1937.6,0.41265]
[1688336546508,5.037,1938.5,1938.2,0.30954]
[1688336546716,5.037,1938.5,1938.3,0.28671635]
[1688336546908,5.037,1938.5,1938.4,0.30952]
[1688336547108,5.061,1938.7,1938.4,4.18780412]
[1688336547308,0.00772703,1938.7,1938.6,8.57829]
[1688336547718,0.00772703,1938.7,1938.6,9.24877412]
[1688336547909,0.00772703,1938.7,1938.6,9.14577412]
[1688336548220,0.00772703,1938.7,1938.6,6.04097412]
[1688336548422,0.00772703,1938.7,1938.6,9.14577412]
[1688336549019,0.00772703,1938.7,1938.6,5.93797412]
[1688336549718,0.00772703,1938.7,1938.6,5.061]
[1688336550016,8.58500703,1938.7,1938.4,0.00773774]
[1688336550212,5.37051,1938.5,1938.4,0.00773774]
[1688336550416,6.29969003,1938.5,1938.4,0.00773774]
[1688336550622,9.50749003,1938.5,1938.4,0.00773774]
[1688336551322,9.50749003,1938.5,1938.4,5.63397409]
[1688336551323,0.92918003,1938.5,1938.4,5.63397409]
[1688336551616,4.14398703,1938.7,1938.4,5.63397409]
[1688336551617,0.93618703,1938.7,1938.4,5.63397409]
[1688336552615,0.93618703,1938.7,1938.4,5.34725774]
[1688336552822,0.93618703,1938.7,1938.4,5.33225774]
[1688336553019,1.86536706,1938.7,1938.4,5.33225774]
[1688336553514,1.86536706,1938.7,1938.5,0.28671635]
[1688336553723,1.86536706,1938.7,1938.4,5.33225774]
[1688336554021,1.86536706,1938.7,1938.5,0.28671635]
[1688336554215,1.86536706,1938.7,1938.5,0.59622635]
[1688336554622,1.86536706,1938.7,1938.5,5.65722635]
[1688336554823,0.93618703,1938.7,1938.5,5.65722635]
[1688336555419,0.93618703,1938.7,1938.5,6.22471047]
[1688336555616,0.00772703,1938.7,1938.5,6.22471047]
[1688336556615,0.00772703,1938.7,1938.5,6.32771047]
[1688336556919,0.00772703,1938.7,1938.6,8.2688]
[1688336557119,0.00772703,1938.7,1938.6,8.57829]
[1688336557328,0.00772703,1938.7,1938.6,5.37049]
[1688336559030,0.00772703,1938.7,1938.6,5.47349]
[1688336559231,0.00772703,1938.7,1938.6,8.57829]
[1688336559624,0.00772703,1938.7,1938.6,8.68129]
[1688336561729,0.00772703,1938.7,1938.6,8.57829]
[1688336563137,0.00772703,1938.7,1938.6,8.68129]
[1688336564227,0.1,1939.0,1938.7,0.56748412]
[1688336564536,0.1,1939.0,1938.9,8.2688]
[1688336564731,0.1,1939.0,1938.9,9.14572412]
[1688336565029,0.1,1939.0,1938.9,5.03]
[1688336565234,0.1,1939.0,1938.9,5.33944]
[1688336565434,0.1,1939.0,1938.9,5.62615635]
[1688336565638,0.1,1939.0,1938.9,8.86495635]
[1688336569541,0.12,1939.0,1938.9,8.86495635]
[1688336575351,0.12,1939.0,1938.8,5.061]
[1688336575849,0.12,1939.0,1938.8,5.37045]
[1688336576050,0.12,1939.0,1938.8,5.65716635]
[1688336577648,0.12,1939.0,1938.9,9.12272412]
[1688336578252,1.07785,1940.0,1939.1,5.181]
[1688336578447,5.91125,1940.0,1939.7,5.061]
[1688336578646,5.91125,1940.0,1939.7,5.06873256]
[1688336579143,9.11905,1940.0,1939.7,5.06873256]
[1688336579347,5.91125,1940.0,1939.7,5.06873256]
[1688336579544,5.91125,1940.0,1939.8,0.28671635]
[1688336579845,5.40519484,1940.0,1939.8,5.34771635]
[1688336580046,5.40519484,1940.0,1939.9,8.91628412]
[1688336580047,2.09920188,1940.0,1939.9,8.91628412]
[1688336580351,0.57179484,1940.0,1939.9,9.22556412]
[1688336580550,0.15,1940.0,1939.9,9.22556412]
[1688336581156,0.15,1940.0,1939.9,9.12256412]
[1688336581451,0.15,1940.0,1939.9,9.22556412]
[1688336581659,0.15,1940.0,1939.9,8.55508]
[1688336581959,0.15,1940.0,1939.9,0.28671635]
[1688336582258,0.15,1940.0,1939.9,5.34771635]
[1688336582458,0.15,1940.0,1939.9,10.94099635]
[1688336582659,0.15,1940.0,1939.9,14.14879635]
[1688336582960,0.15,1940.0,1939.9,5.37028]
[1688336583157,0.45927,1940.0,1939.9,5.061]
[1688336583356,5.52027,1940.0,1939.8,0.3093]
[1688336583657,0.45927,1940.0,1939.8,5.061]
[1688336583959,0.45927,1940.0,1939.8,5.34771635]
[1688336584155,8.2448,1939.9,1939.7,0.00773256]
[1688336584363,5.3383,1939.8,1939.7,0.00773256]
[1688336585757,10.3993,1939.8,1939.1,0.30941]
[1688336585952,5.061,1939.4,1939.0,10.9432]
[1688336586152,0.30938,1939.3,1939.0,10.9432]
[1688336586554,3.51718,1939.3,1938.7,3.2078]
[1688336586862,5.027,1939.1,1938.8,0.00773595]
[1688336587062,0.30943,1939.0,1938.9,0.28671635]
[1688336587255,0.30943,1939.0,1938.8,0.00773595]
[1688336587753,0.30943,1939.0,1938.8,0.2944523]
[1688336588958,0.30943,1939.0,1938.8,0.00773595]
[1688336589767,0.30943,1939.0,1938.8,0.2944523]
[1688336590256,0.30943,1939.0,1938.8,0.6039123]
[1688336591361,1.23839454,1939.0,1938.8,0.6039123]
[1688336591757,0.92896454,1939.0,1938.8,0.6039123]
[1688336592162,0.92896454,1939.0,1938.8,5.6419123]
[1688336592367,1.70252454,1939.1,1938.8,5.6419123]
[1688336592663,5.061,1939.0,1938.8,0.2944523]
[1688336592857,6.29939454,1939.0,1938.8,0.2944523]
[1688336593073,6.29939454,1939.0,1938.8,0.00773595]
[1688336593764,5.061,1938.9,1938.8,0.00773595]
[1688336593967,5.37044,1938.9,1938.8,0.00773595]
[1688336594165,6.29940454,1938.9,1938.8,0.00773595]
[1688336598569,0.92896454,1938.9,1938.8,0.2944523]
[1688336598763,0.92896454,1938.9,1938.8,5.3554523]
[1688336598975,0.77362,1939.0,1938.8,5.3554523]
[1688336599280,0.77362,1939.0,1938.8,0.2944523]
[1688336599574,1.70258454,1939.0,1938.8,0.2944523]
[1688336602676,6.76358454,1939.0,1938.8,0.2944523]
[1688336602878,0.92896454,1938.9,1938.8,0.2944523]
[1688336603074,1.23840454,1938.9,1938.8,0.00773595]
[1688336603272,6.29940454,1938.9,1938.8,0.00773595]
[1688336603578,9.50720454,1938.9,1938.5,0.3095]
[1688336603776,5.061,1938.6,1938.5,0.3095]
[1688336604366,5.061,1938.6,1938.5,0.59621635]
[1688336605673,5.061,1938.6,1938.4,0.00773774]
[1688336605883,5.061,1938.5,1938.4,0.00773774]
[1688336606178,5.37051,1938.5,1938.4,0.00773774]
[1688336606376,6.29947454,1938.5,1938.4,0.00773774]
[1688336606781,9.50727454,1938.5,1937.8,3.2078]
[1688336606970,0.30959,1938.0,1937.8,3.51742]
[1688336607168,0.30959,1938.0,1937.7,10.94686]
[1688336607373,5.027,1937.9,1937.7,5.92886]
[1688336607576,5.33661,1937.9,1937.7,0.92886]
[1688336607776,6.26557454,1937.9,1937.7,0.30963]
[1688336609287,6.26557454,1937.9,1937.8,0.25495567]
[1688336610181,5.95596454,1937.9,1937.8,3.46275567]
[1688336610379,6.26556454,1937.9,1937.8,3.46275567]
[1688336610583,6.26556454,1937.9,1937.8,0.25495567]
[1688336610977,6.29856454,1937.9,1937.6,3.98962074]
[1688336611280,0.30963,1937.7,1937.6,3.98962074]
[1688336611477,0.30963,1937.7,1937.6,0.78182074]
[1688336612380,0.30963,1937.7,1937.6,1.06853709]
[1688336612580,0.78183074,1938.0,1937.6,9.44033709]
[1688336612783,0.78183074,1938.0,1937.7,5.038]
[1688336612987,1.71112746,1938.0,1937.7,5.34762]
[1688336613291,2.12720105,1938.0,1937.7,5.34762]
[1688336613587,2.12720105,1938.0,1937.7,5.91510412]
[1688336614387,2.12720105,1938.0,1937.7,0.30962]
[1688336614388,5.061,1937.9,1937.7,0.30962]
[1688336614588,5.061,1937.9,1937.6,0.00774074]
[1688336614589,5.34662,1937.8,1937.6,0.00774074]
[1688336614786,5.34662,1937.8,1937.6,0.31738074]
[1688336616280,5.34662,1937.8,1937.6,0.00774074]
[1688336616685,5.34662,1937.8,1937.6,5.37839074]
[1688336616686,0.30962,1937.8,1937.6,5.37839074]
[1688336617188,0.30962,1937.8,1937.6,5.66510709]
[1688336617587,5.80305,1937.9,1937.6,5.66510709]
[1688336618186,5.027,1937.8,1937.6,0.31739074]
[1688336618388,5.027,1937.8,1937.6,0.00774074]
[1688336618684,5.027,1937.8,1937.6,0.31739074]
[1688336620889,5.027,1937.8,1937.6,0.60410709]
[1688336621188,10.45751433,1938.0,1937.7,3.2078]
[1688336621382,0.42381433,1938.0,1937.8,0.30962]
[1688336621582,0.42381433,1938.0,1937.8,1.16382047]
[1688336622293,0.15381433,1938.0,1937.8,1.16382047]
[1688336622590,0.92928768,1938.1,1937.8,1.16382047]
[1688336622790,0.92928768,1938.1,1937.8,6.17882047]
[1688336622991,9.8039,1938.2,1937.9,3.2078]
[1688336623189,1.23859148,1938.7,1938.2,5.181]
[1688336623494,0.92913589,1939.0,1938.7,0.103]
[1688336623792,0.00773654,1939.0,1938.9,8.57824]
[1688336624592,0.00773654,1939.0,1938.9,8.68124]
[1688336626189,0.00773654,1939.0,1938.9,18.86224]
[1688336628392,0.41691323,1939.1,1939.0,5.74848412]
[1688336628695,5.037,1939.7,1939.0,11.17891412]
[1688336628895,1.066,1939.9,1939.6,3.2078]
[1688336629094,5.029,1939.9,1939.8,3.2078]
[1688336629297,0.59599635,1939.9,1939.8,3.2078]
[1688336629605,0.59599635,1939.9,1939.8,3.15830079]
[1688336630994,0.30928,1939.9,1939.8,3.15830079]
[1688336633092,0.59599635,1939.9,1939.8,3.15830079]
[1688336633296,5.62499635,1939.9,1939.6,3.2078]
[1688336633487,5.62499635,1939.9,1939.6,3.1831657]
[1688336634691,5.62499635,1939.9,1939.6,3.75064982]
[1688336636593,5.33828,1939.9,1939.8,3.2078]
[1688336637195,2.44933406,1940.0,1939.8,3.2078]
[1688336637196,7.47633406,1940.0,1939.8,3.2078]
[1688336638602,2.44933406,1940.0,1939.9,0.56748412]
[1688336638798,2.14001406,1940.0,1939.9,0.56748412]
[1688336639297,2.14001406,1940.0,1939.9,5.58548412]
[1688336642404,2.73599041,1940.0,1939.8,8.2258]
[1688336643398,2.44927406,1940.0,1939.8,8.2258]
[1688336643594,3.66456791,1940.0,1939.8,8.2258]
[1688336644797,2.14001406,1940.0,1939.9,5.62848412]
[1688336644997,2.14001406,1940.0,1939.9,5.93776412]
[1688336645404,2.14001406,1940.0,1939.9,5.62848412]
[1688336646097,2.14001406,1940.0,1939.9,5.93776412]
[1688336648697,2.14001406,1940.0,1939.9,5.62848412]
[1688336648898,2.14001406,1940.0,1939.9,5.93776412]
[1688336650416,2.42673041,1940.0,1939.9,5.061]
[1688336651303,2.14001406,1940.0,1939.9,5.061]
[1688336651503,2.42673041,1940.0,1939.9,5.061]
[1688336652114,2.14001406,1940.0,1939.9,5.061]
[1688336652505,2.42673041,1940.0,1939.9,5.061]
[1688336652714,2.42673041,1940.0,1939.9,5.018]
[1688336655714,2.14001406,1940.0,1939.9,5.018]
[1688336656514,2.42673041,1940.0,1939.9,5.018]
[1688336656712,2.14001406,1940.0,1939.9,5.018]
[1688336657910,2.42673041,1940.0,1939.9,5.018]
[1688336659109,7.79699041,1940.0,1939.7,0.00773236]
[1688336659417,5.061,1939.8,1939.7,0.00773236]
[1688336659616,5.34771635,1939.8,1939.7,0.00773236]
[1688336660418,5.65701635,1939.8,1939.7,0.00773236]
[1688336662817,6.58566745,1939.8,1939.7,0.00773236]
[1688336663019,6.58569621,1939.8,1939.7,0.00773236]
[1688336664923,5.98967986,1939.8,1939.7,0.00773236]
[1688336665121,6.27639621,1939.8,1939.7,0.00773236]
[1688336667319,0.92867986,1939.8,1939.7,0.31704236]
[1688336667526,5.98967986,1939.9,1939.7,0.31704236]
[1688336667826,5.98967986,1939.9,1939.8,3.2078]
[1688336668030,5.98967986,1939.9,1939.8,3.77528412]
[1688336669023,6.27639621,1939.9,1939.8,3.2078]
[1688336669430,5.98967986,1939.9,1939.8,3.2078]
[1688336670325,6.27639621,1939.9,1939.8,3.2078]
[1688336671216,2.14001406,1940.0,1939.8,13.6811]
[1688336671415,2.14001406,1940.0,1939.9,5.62848412]
[1688336671621,2.14001406,1940.0,1939.9,5.93776412]
[1688336672422,0.77288,1940.8,1940.3,5.0]
[1688336672626,4.89787986,1940.7,1940.5,8.55497]
[1688336672927,4.8782,1940.7,1940.5,8.55497]
[1688336673329,5.18736,1940.7,1940.5,8.55497]
[1688336673521,5.47407635,1940.7,1940.5,8.55497]
[1688336673831,5.38884986,1940.6,1940.5,3.51698]
[1688336674316,5.38884986,1940.6,1940.5,0.30918]
[1688336674720,5.38884986,1940.6,1940.3,0.77301]
[1688336674721,5.38984986,1940.6,1940.3,0.77301]
[1688336674926,5.3462,1940.4,1940.3,0.77301]
[1688336675131,0.3092,1940.4,1940.3,0.77301]
[1688336675328,0.32887986,1940.4,1940.3,0.77301]
[1688336675827,0.32887986,1940.4,1940.2,3.98077]
[1688336676731,5.027,1940.5,1940.4,0.3092]
[1688336676922,5.62289635,1940.5,1940.4,3.517]
[1688336677125,0.59589635,1940.5,1940.4,3.2078]
[1688336677827,0.30918,1940.5,1940.4,3.2078]
[1688336678331,5.029,1940.6,1940.4,4.08448412]
[1688336678626,0.28671635,1940.5,1940.4,4.08448412]
[1688336678829,5.029,1940.6,1940.4,4.08448412]
[1688336679425,5.62488635,1940.6,1940.4,3.517]
[1688336679623,4.89787986,1940.7,1940.4,8.578]
[1688336679830,4.89787986,1940.7,1940.6,3.2078]
[1688336680139,5.49374621,1940.7,1940.6,3.2078]
[1688336680727,10.55474621,1940.7,1940.6,3.2078]
[1688336683231,4.8782,1940.7,1940.6,3.2078]
[1688336683435,4.8782,1940.7,1940.6,8.55497]
[1688336683932,0.40238771,1940.8,1940.6,8.55497]
[1688336684132,0.40238771,1940.8,1940.7,0.67048412]
[1688336684336,0.89474672,1940.9,1940.7,0.97963412]
[1688336684637,5.95064672,1940.9,1940.8,3.51694]
[1688336685224,11.29836307,1940.9,1940.8,3.2078]
[1688336686237,11.71948668,1940.9,1940.8,3.2078]
[1688336686534,0.54303033,1940.9,1940.8,18.70794]
[1688336686731,0.54303033,1940.9,1940.8,13.70794]
[1688336686732,0.12190672,1940.9,1940.8,13.70794]
[1688336686929,0.12190672,1940.9,1940.8,18.70794]
[1688336687242,0.12190672,1940.9,1940.8,23.88894]
[1688336687828,0.12190672,1940.9,1940.8,29.66684491]
[1688336688033,1.31064958,1941.9,1941.2,0.103]
[1688336688231,0.30897,1941.9,1941.7,3.2078]
[1688336688428,0.30897,1941.9,1941.8,5.061]
[1688336688633,1.07686,1942.0,1941.8,5.93746412]
[1688336688838,0.45895,1942.0,1941.9,8.2688]
[1688336689035,0.15,1942.0,1941.9,8.57776]
[1688336689335,0.15,1942.0,1941.9,8.2688]
[1688336689528,0.45895,1942.0,1941.9,8.2688]
[1688336689734,0.15,1942.0,1941.9,5.061]
[1688336690138,0.45639621,1942.0,1941.9,5.061]
[1688336690339,0.45639621,1942.0,1941.7,3.2078]
[1688336690340,0.16967986,1942.0,1941.7,3.2078]
[1688336690530,0.16967986,1942.0,1941.9,5.015]
[1688336690728,0.16967986,1942.0,1941.9,8.2228]
[1688336690935,0.45895,1942.0,1941.9,8.2228]
[1688336691135,0.74566635,1942.0,1941.6,5.03]
[1688336691338,5.061,1941.7,1941.3,3.2078]
[1688336691543,0.30903,1941.5,1941.3,3.2078]
[1688336692039,0.30903,1941.5,1941.4,5.03]
[1688336692245,1.85484372,1941.7,1941.4,5.33904]
[1688336692432,0.92775372,1941.7,1941.6,3.2078]
[1688336692632,1.21447007,1941.7,1941.6,8.2688]
[1688336692838,0.28671635,1941.7,1941.6,8.2688]
[1688336693044,6.07367986,1941.8,1941.6,8.2688]
[1688336693243,5.024,1941.8,1941.6,8.2688]
[1688336693639,0.61537621,1941.8,1941.6,3.2078]
[1688336693835,8.2688,1941.7,1941.0,5.02572738]
[1688336694050,5.061,1941.4,1941.0,5.33483738]
[1688336694344,0.32873986,1941.3,1941.0,5.33483738]
[1688336694933,0.32873986,1941.3,1941.0,5.9023215]
[1688336695342,5.34771635,1941.2,1941.0,0.00772738]
[1688336695540,0.30909,1941.1,1941.0,0.00772738]
[1688336695734,0.30909,1941.1,1941.0,5.03772738]
[1688336697649,0.59580635,1941.1,1941.0,5.03772738]
[1688336698349,0.30909,1941.1,1941.0,5.03772738]
[1688336699849,0.92702,1941.8,1941.1,0.103]
[1688336700048,0.92702,1941.8,1941.5,5.061]
[1688336700049,6.80065688,1941.8,1941.5,5.061]
[1688336700243,6.80065688,1941.8,1941.6,0.41201]
[1688336700244,0.41931417,1941.7,1941.6,0.41201]
[1688336700446,4.9458,1941.8,1941.6,8.55481]
[1688336700840,0.68800397,1942.0,1941.7,5.061]
[1688336701041,0.68800397,1942.0,1941.9,5.121]
[1688336701245,0.68800397,1942.0,1941.9,5.99744412]
[1688336701747,0.68800397,1942.0,1941.9,5.68848412]
[1688336701947,0.68800397,1942.0,1941.9,5.58548412]
[1688336702146,0.68800397,1942.0,1941.9,5.89444412]
[1688336702851,1.28367032,1942.0,1941.8,5.015]
[1688336703049,6.32067032,1942.0,1941.6,9.17277]
[1688336703254,6.32067032,1942.0,1941.6,9.12229412]
[1688336703255,0.01967986,1941.9,1941.6,9.12229412]
[1688336703450,0.32864986,1941.9,1941.6,9.12229412]
[1688336704347,0.32864986,1941.9,1941.6,8.81328412]
[1688336704654,0.32864986,1941.9,1941.8,5.015]
[1688336704952,1.46043397,1942.0,1941.8,9.09926412]
[1688336704953,0.68800397,1942.0,1941.8,9.09926412]
[1688336705154,0.68800397,1942.0,1941.9,5.36996]
[1688336705558,0.99695397,1942.0,1941.9,5.36996]
[1688336705752,0.99695397,1942.0,1941.9,5.061]
[1688336706750,0.68800397,1942.0,1941.9,5.164]
[1688336706952,0.15,1942.0,1941.9,11.37861631]
[1688336707151,0.15,1942.0,1941.9,0.41196]
[1688336707350,0.15,1942.0,1941.9,5.164]
[1688336707565,0.15,1942.0,1941.9,5.47296]
[1688336707854,0.15,1942.0,1941.9,11.41999123]
[1688336708158,0.15,1942.0,1941.9,5.47296]
[1688336708362,0.15,1942.0,1941.9,10.65396]
[1688336708655,0.15,1942.0,1941.9,11.4026402]
[1688336708863,0.15,1942.0,1941.9,5.47296]
[1688336709154,0.92750231,1942.6,1942.3,0.103]
[1688336709357,0.92750231,1942.6,1942.5,5.018]
[1688336709358,0.40447569,1942.6,1942.5,5.018]
[1688336709552,0.30881,1942.9,1942.5,5.018]
[1688336709753,0.73634546,1942.9,1942.6,3.2078]
[1688336709953,1.25599217,1942.9,1942.6,3.77528412]
[1688336710160,0.1,1943.0,1942.8,3.2078]
[1688336710359,1.11689474,1943.0,1942.8,3.77528412]
[1688336710552,0.69551635,1943.0,1942.8,3.2078]
[1688336710752,0.38671635,1943.0,1942.9,0.41181]
[1688336710954,0.38671635,1943.0,1942.9,6.01729412]
[1688336710955,0.1,1943.0,1942.9,6.01729412]
[1688336711462,0.38671635,1943.0,1942.8,5.015]
[1688336711660,0.69550635,1943.0,1942.8,5.015]
[1688336712055,0.69550635,1943.0,1942.6,3.2078]
[1688336712056,5.72450635,1943.0,1942.6,8.2378]
[1688336712259,0.38671635,1943.0,1942.7,5.061]
[1688336712567,5.029,1942.9,1942.5,5.061]
[1688336712762,6.26515973,1942.9,1942.5,5.061]
[1688336713057,0.01967986,1942.8,1942.5,5.061]
[1688336713265,0.01967986,1942.8,1942.5,5.62848412]
[1688336713266,0.30884,1942.7,1942.5,5.62848412]
[1688336714261,0.79177986,1942.8,1942.5,5.0195]
[1688336714464,0.30885,1942.6,1942.5,5.0195]
[1688336714664,0.30885,1942.6,1942.3,0.00772221]
[1688336714851,0.30885,1942.6,1942.3,5.60520633]
[1688336715659,1.07853621,1942.7,1942.5,5.061]
[1688336715866,0.01967986,1942.7,1942.5,5.061]
[1688336716563,0.30884,1942.7,1942.5,5.061]
[1688336716958,1.69949782,1942.8,1942.6,0.56748412]
[1688336717156,0.40884,1943.0,1942.7,5.038]
[1688336717466,1.33615543,1943.0,1942.7,8.81328412]
[1688336718058,1.35583529,1943.0,1942.7,8.81328412]
[1688336718368,1.33615543,1943.0,1942.7,8.81328412]
[1688336718568,1.33615543,1943.0,1942.9,8.2378]
[1688336718569,0.1,1943.0,1942.9,8.2378]
[1688336718768,0.1,1943.0,1942.9,5.59748412]
[1688336718967,1.02724288,1943.0,1942.9,5.59748412]
[1688336719565,0.1,1943.0,1942.9,5.59748412]
[1688336719865,0.1,1943.0,1942.9,9.22509412]
[1688336720060,1.69895069,1943.6,1942.9,24.42509412]
[1688336720260,1.69895069,1943.6,1943.2,3.3108]
[1688336720261,0.30871,1943.5,1943.2,3.3108]
[1688336720456,0.30871,1943.5,1943.3,5.62848412]
[1688336720864,1.69895069,1943.6,1943.3,11.22122412]
[1688336721071,0.30857,1944.5,1943.9,0.00771565]
[1688336721262,3.2078,1944.9,1944.4,0.103]
[1688336721469,5.037,1944.5,1944.1,10.018]
[1688336721672,3.2078,1944.4,1944.1,10.018]
[1688336721860,3.99894986,1944.4,1944.2,0.103]
[1688336722064,5.36957,1944.5,1944.1,10.58548412]
[1688336722366,0.77139,1944.8,1944.1,10.58548412]
[1688336722367,0.77139,1944.8,1944.4,5.164]
[1688336722565,0.30853,1944.7,1944.4,0.103]
[1688336722762,0.28671635,1944.6,1944.4,0.56748412]
[1688336723065,0.1,1945.0,1944.9,0.103]
[1688336723266,3.2078,1945.6,1945.2,0.103]
[1688336723569,3.2078,1945.6,1945.5,10.195]
[1688336723762,3.49451635,1945.6,1945.5,10.092]
[1688336724063,3.49451635,1945.6,1945.1,5.061]
[1688336724064,8.86388635,1945.6,1945.1,5.061]
[1688336724271,8.86388635,1945.6,1945.3,5.061]
[1688336724272,0.77105,1945.4,1945.3,5.061]
[1688336724460,6.08476635,1945.4,1945.0,5.06871149]
[1688336724660,3.2078,1945.2,1945.0,0.00771149]
[1688336724867,3.97893,1945.2,1945.0,0.00771149]
[1688336725172,4.26564635,1945.2,1945.0,0.00771149]
[1688336725366,12.18864635,1945.2,1945.0,0.00771149]
[1688336725567,12.18864635,1945.2,1943.9,17.951]
[1688336725568,0.02732376,1945.1,1943.9,17.951]
[1688336725770,3.2078,1944.4,1944.1,5.0]
[1688336725974,0.30855,1944.5,1944.2,0.56748412]
[1688336726171,0.0076439,1945.1,1944.7,5.103]
[1688336726376,0.0076439,1945.1,1945.0,13.001]
[1688336726672,0.0076439,1945.1,1945.0,13.30947]
[1688336726874,0.0076439,1945.1,1945.0,13.87695412]
[1688336727264,0.0076439,1945.1,1945.0,22.51771871]
[1688336727574,0.0076439,1945.1,1945.0,19.30991871]
[1688336728168,3.2078,1945.5,1945.4,5.103]
[1688336728379,0.15,1946.0,1945.9,5.0]
[1688336728570,0.16967986,1946.0,1945.9,12.923]
[1688336728771,0.15,1946.0,1945.9,13.026]
[1688336728966,0.15,1946.0,1945.9,12.923]
[1688336729171,8.62702635,1946.0,1945.4,5.25701]
[1688336729374,3.2078,1945.6,1945.4,5.0]